[Event "Live Chess"]
[Site "Chess.com"]
[Date "2024.06.01"]
[Round "-"]
[White "WelshTiger"]
[Black "chessfiction"]
[Result "1-0"]
[WhiteElo "2520"]
[BlackElo "2369"]
[TimeControl "300"]
[EndTime "13:53:13 PDT"]
[Termination "WelshTiger won by resignation"]

1. e4 {[%clk 0:04:57.8]} 1... d6 {[%clk 0:04:57.1]} 2. d4 {[%clk 0:04:56.7]}
2... Nf6 {[%clk 0:04:56.5]} 3. Nc3 {[%clk 0:04:53.8]} 3... c6 {[%clk 0:04:55.1]}
4. f4 {[%clk 0:04:52.3]} 4... Qa5 {[%clk 0:04:52.4]} 5. Bd3 {[%clk 0:04:50.4]}
5... e5 {[%clk 0:04:50.7]} 6. Nf3 {[%clk 0:04:49]} 6... Bg4 {[%clk 0:04:49.6]}
7. Be3 {[%clk 0:04:46.4]} 7... Nbd7 {[%clk 0:04:48.8]} 8. h3 {[%clk 0:04:45]}
8... Bh5 {[%clk 0:04:47.3]} 9. g4 {[%clk 0:04:33.4]} 9... exf4 {[%clk
0:04:45.2]} 10. Bxf4 {[%clk 0:04:32.5]} 10... Bg6 {[%clk 0:04:44.7]} 11. Qe2
{[%clk 0:04:22.8]} 11... O-O-O {[%clk 0:04:38.8]} 12. O-O-O {[%clk 0:04:21.3]}
12... d5 {[%clk 0:04:32.6]} 13. e5 {[%clk 0:04:16.7]} 13... Ne4 {[%clk
0:04:29.3]} 14. Bxe4 {[%clk 0:04:13.1]} 14... dxe4 {[%clk 0:04:27.9]} 15. Nh4
{[%clk 0:04:11.2]} 15... Bb4 {[%clk 0:04:26.5]} 16. Bd2 {[%clk 0:04:08.9]} 16...
Bxc3 {[%clk 0:04:24]} 17. Bxc3 {[%clk 0:04:08.2]} 17... Qxa2 {[%clk 0:04:23.7]}
18. Nxg6 {[%clk 0:04:02]} 18... hxg6 {[%clk 0:04:22.1]} 19. Qxe4 {[%clk
0:04:01.1]} 19... Nc5 {[%clk 0:04:20.3]} 20. Qf3 {[%clk 0:03:47.9]} 20... Na4
{[%clk 0:04:04]} 21. b3 {[%clk 0:03:47]} 21... Nxc3 {[%clk 0:03:37]} 22. Qxc3
{[%clk 0:03:46.9]} 22... Rd5 {[%clk 0:03:33.5]} 23. Qb2 {[%clk 0:03:21.8]} 23...
Qxb2+ {[%clk 0:03:25.2]} 24. Kxb2 {[%clk 0:03:21.7]} 24... Rhd8 {[%clk
0:03:23.7]} 25. Rhf1 {[%clk 0:03:21]} 25... Rxd4 {[%clk 0:03:13.1]} 26. Rxd4
{[%clk 0:03:19.1]} 26... Rxd4 {[%clk 0:03:13]} 27. Rxf7 {[%clk 0:03:18.1]} 27...
Rd7 {[%clk 0:03:12.2]} 28. e6 {[%clk 0:03:16.2]} 28... Rd6 {[%clk 0:03:08]} 29.
Rf8+ {[%clk 0:03:13.7]} 1-0

[Event "Live Chess"]
[Site "Chess.com"]
[Date "2024.06.01"]
[Round "-"]
[White "bobby_jamesFischer86"]
[Black "MagnersCarlsberg2870"]
[Result "1-0"]
[WhiteElo "1620"]
[BlackElo "1779"]
[TimeControl "300"]
[EndTime "13:53:17 PDT"]
[Termination "bobby_jamesFischer86 won by resignation"]

1. d4 {[%clk 0:04:57.1]} 1... Nf6 {[%clk 0:04:58.7]} 2. c4 {[%clk 0:04:54.9]}
2... e5 {[%clk 0:04:57.6]} 3. dxe5 {[%clk 0:04:53.3]} 3... Ne4 {[%clk
0:04:55.9]} 4. Nf3 {[%clk 0:04:52.1]} 4... Bb4+ {[%clk 0:04:52.8]} 5. Bd2 {[%clk
0:04:50.5]} 5... Nxd2 {[%clk 0:04:51]} 6. Nbxd2 {[%clk 0:04:49.2]} 6... d6
{[%clk 0:04:49.7]} 7. exd6 {[%clk 0:04:45]} 7... Qxd6 {[%clk 0:04:48.6]} 8. a3
{[%clk 0:04:43.4]} 8... Bxd2+ {[%clk 0:04:45.2]} 9. Qxd2 {[%clk 0:04:42.1]} 9...
Qxd2+ {[%clk 0:04:44]} 10. Nxd2 {[%clk 0:04:40.8]} 10... Be6 {[%clk 0:04:42.8]}
11. e3 {[%clk 0:04:38.8]} 11... Nc6 {[%clk 0:04:41.5]} 12. Be2 {[%clk
0:04:36.9]} 12... O-O-O {[%clk 0:04:40.1]} 13. Rd1 {[%clk 0:04:34.4]} 13... Na5
{[%clk 0:04:37.3]} 14. O-O {[%clk 0:04:30.7]} 14... h5 {[%clk 0:04:34.9]} 15. b4
{[%clk 0:04:29.3]} 15... Nc6 {[%clk 0:04:33.2]} 16. Nf3 {[%clk 0:04:21.4]} 16...
f6 {[%clk 0:04:30.6]} 17. Rxd8+ {[%clk 0:04:16.4]} 17... Rxd8 {[%clk 0:04:28.9]}
18. c5 {[%clk 0:04:11.5]} 18... g5 {[%clk 0:04:27.2]} 19. Rd1 {[%clk 0:04:08.2]}
19... Rg8 {[%clk 0:04:21.5]} 20. Nd4 {[%clk 0:04:06]} 20... Bf7 {[%clk
0:04:16.9]} 21. Nxc6 {[%clk 0:04:03.9]} 21... bxc6 {[%clk 0:04:15.5]} 22. Bf3
{[%clk 0:03:58.7]} 22... Be8 {[%clk 0:04:04.3]} 23. g3 {[%clk 0:03:53.8]} 23...
g4 {[%clk 0:04:03.1]} 24. Bg2 {[%clk 0:03:52.2]} 24... a6 {[%clk 0:03:59]} 25.
Kf1 {[%clk 0:03:30.9]} 25... Rg5 {[%clk 0:03:51.2]} 26. Ke2 {[%clk 0:03:20.6]}
26... h4 {[%clk 0:03:44.3]} 27. Rd4 {[%clk 0:03:17.4]} 27... hxg3 {[%clk
0:03:40.9]} 28. hxg3 {[%clk 0:03:08.7]} 28... Re5 {[%clk 0:03:38]} 29. Kd3
{[%clk 0:02:55.8]} 29... Bg6+ {[%clk 0:03:31.3]} 30. Kc3 {[%clk 0:02:43.6]}
30... a5 {[%clk 0:03:03.1]} 31. Bxc6 {[%clk 0:02:38.6]} 31... axb4+ {[%clk
0:02:58.7]} 32. axb4 {[%clk 0:02:34.6]} 32... f5 {[%clk 0:02:56.6]} 33. Rd1
{[%clk 0:02:11.9]} 1-0

[Event "Live Chess"]
[Site "Chess.com"]
[Date "2024.06.01"]
[Round "-"]
[White "JohanKjeldahl"]
[Black "crais6"]
[Result "1/2-1/2"]
[WhiteElo "1863"]
[BlackElo "1636"]
[TimeControl "300"]
[EndTime "13:53:26 PDT"]
[Termination "Game drawn by repetition"]

1. e4 {[%clk 0:04:57.2]} 1... c5 {[%clk 0:04:56.4]} 2. Nf3 {[%clk 0:04:55.9]}
2... Nc6 {[%clk 0:04:53.9]} 3. d4 {[%clk 0:04:54.9]} 3... cxd4 {[%clk
0:04:51.1]} 4. Nxd4 {[%clk 0:04:54.4]} 4... e5 {[%clk 0:04:46.9]} 5. Nb5 {[%clk
0:04:52.5]} 5... d6 {[%clk 0:04:44.9]} 6. c4 {[%clk 0:04:49.7]} 6... Be6 {[%clk
0:04:40.9]} 7. N1c3 {[%clk 0:04:47.8]} 7... a6 {[%clk 0:04:38.8]} 8. Na3 {[%clk
0:04:45.7]} 8... Be7 {[%clk 0:04:37.4]} 9. Be2 {[%clk 0:04:40.3]} 9... Bg5
{[%clk 0:04:33.4]} 10. O-O {[%clk 0:04:36.8]} 10... Bxc1 {[%clk 0:04:26.2]} 11.
Rxc1 {[%clk 0:04:34.6]} 11... Nge7 {[%clk 0:04:22.3]} 12. Nd5 {[%clk 0:04:33.1]}
12... O-O {[%clk 0:04:18.6]} 13. Nc2 {[%clk 0:04:28.8]} 13... f5 {[%clk
0:04:15.6]} 14. exf5 {[%clk 0:04:26.4]} 14... Bxf5 {[%clk 0:04:12.9]} 15. Nce3
{[%clk 0:04:25]} 15... Be4 {[%clk 0:04:05.4]} 16. f3 {[%clk 0:04:15.3]} 16...
Bg6 {[%clk 0:04:03]} 17. Nxe7+ {[%clk 0:04:10.8]} 17... Qxe7 {[%clk 0:03:59.8]}
18. Nd5 {[%clk 0:04:09.7]} 18... Qf7 {[%clk 0:03:55.7]} 19. Qd2 {[%clk
0:03:46.6]} 19... Nd4 {[%clk 0:03:50.6]} 20. Bd3 {[%clk 0:03:39.8]} 20... Rac8
{[%clk 0:03:44.6]} 21. Bxg6 {[%clk 0:03:35]} 21... hxg6 {[%clk 0:03:42.2]} 22.
Rfe1 {[%clk 0:03:27.3]} 22... Kh7 {[%clk 0:03:36.6]} 23. Re4 {[%clk 0:03:25.4]}
23... Nf5 {[%clk 0:03:26.6]} 24. b3 {[%clk 0:03:16.9]} 24... b5 {[%clk
0:03:20.2]} 25. Nb6 {[%clk 0:03:00.2]} 25... Rc6 {[%clk 0:03:14.3]} 26. Qf2
{[%clk 0:02:58]} 26... Nd4 {[%clk 0:03:02.3]} 27. Nd5 {[%clk 0:02:45.6]} 27...
bxc4 {[%clk 0:02:43.3]} 28. bxc4 {[%clk 0:02:39.8]} 28... Kg8 {[%clk 0:02:34.2]}
29. Qh4 {[%clk 0:02:35]} 29... Qxd5 {[%clk 0:02:21.1]} 30. cxd5 {[%clk
0:02:32.8]} 30... Rxc1+ {[%clk 0:02:19.7]} 31. Kf2 {[%clk 0:02:30.1]} 31... Rc2+
{[%clk 0:02:17]} 32. Ke3 {[%clk 0:02:14.4]} 32... Re2+ {[%clk 0:02:12.5]} 33.
Kd3 {[%clk 0:02:12.7]} 33... Rxg2 {[%clk 0:02:07.1]} 34. Rxd4 {[%clk 0:01:57.4]}
34... Rxf3+ {[%clk 0:01:57.7]} 35. Kc4 {[%clk 0:01:48.9]} 35... Rc2+ {[%clk
0:01:48.8]} 36. Kb4 {[%clk 0:01:45.1]} 36... exd4 {[%clk 0:01:41.5]} 37. Qxd4
{[%clk 0:01:39.9]} 37... Rc5 {[%clk 0:01:34.9]} 38. Qg4 {[%clk 0:01:30.3]} 38...
a5+ {[%clk 0:01:22.4]} 39. Ka4 {[%clk 0:01:25.6]} 39... Rfc3 {[%clk 0:01:08.6]}
40. Qe6+ {[%clk 0:01:22.6]} 40... Kh7 {[%clk 0:01:04.4]} 41. Qxd6 {[%clk
0:01:18.4]} 41... R3c4+ {[%clk 0:00:59.8]} 42. Ka3 {[%clk 0:01:07.4]} 42... Rc3+
{[%clk 0:00:55.6]} 43. Kb2 {[%clk 0:00:57.2]} 43... Rc2+ {[%clk 0:00:52.8]} 44.
Kb3 {[%clk 0:00:55.5]} 44... R2c3+ {[%clk 0:00:41.1]} 45. Kb2 {[%clk 0:00:54.1]}
45... Rc2+ {[%clk 0:00:39.1]} 46. Kb3 {[%clk 0:00:53.4]} 46... R2c3+ {[%clk
0:00:37.3]} 47. Kb2 {[%clk 0:00:52.7]} 1/2-1/2

[Event "Live Chess"]
[Site "Chess.com"]
[Date "2024.06.01"]
[Round "-"]
[White "wadsy27"]
[Black "FMOlexandrProhorov"]
[Result "1-0"]
[WhiteElo "2546"]
[BlackElo "2343"]
[TimeControl "300"]
[EndTime "13:53:33 PDT"]
[Termination "wadsy27 won on time"]

1. d4 {[%clk 0:04:59.3]} 1... g6 {[%clk 0:04:55.4]} 2. c4 {[%clk 0:04:56.7]}
2... Bg7 {[%clk 0:04:55.3]} 3. Nf3 {[%clk 0:04:56.4]} 3... c5 {[%clk 0:04:55.1]}
4. d5 {[%clk 0:04:53.7]} 4... f5 {[%clk 0:04:53.9]} 5. Nc3 {[%clk 0:04:53.3]}
5... Nf6 {[%clk 0:04:53.6]} 6. h4 {[%clk 0:04:49.8]} 6... O-O {[%clk 0:04:52.8]}
7. Be3 {[%clk 0:04:48.4]} 7... d6 {[%clk 0:04:51.4]} 8. Qd2 {[%clk 0:04:47.9]}
8... e6 {[%clk 0:04:42.2]} 9. Bg5 {[%clk 0:04:42.3]} 9... exd5 {[%clk
0:04:39.1]} 10. Nxd5 {[%clk 0:04:40.9]} 10... Be6 {[%clk 0:04:38.1]} 11. h5
{[%clk 0:04:39.1]} 11... Bxd5 {[%clk 0:04:35]} 12. Bxf6 {[%clk 0:04:23.1]} 12...
Qxf6 {[%clk 0:04:28.4]} 13. Qxd5+ {[%clk 0:04:22.5]} 13... Rf7 {[%clk
0:04:10.7]} 14. hxg6 {[%clk 0:04:20.3]} 14... hxg6 {[%clk 0:04:09.4]} 15. Rb1
{[%clk 0:04:13.2]} 15... Nc6 {[%clk 0:04:03.3]} 16. e3 {[%clk 0:04:03.5]} 16...
Nb4 {[%clk 0:03:57.6]} 17. Qd2 {[%clk 0:04:01.5]} 17... Re8 {[%clk 0:03:52.9]}
18. a3 {[%clk 0:03:58.3]} 18... Nc6 {[%clk 0:03:51.7]} 19. Be2 {[%clk
0:03:57.6]} 19... g5 {[%clk 0:03:43.5]} 20. g3 {[%clk 0:03:50.3]} 20... f4
{[%clk 0:02:58.7]} 21. gxf4 {[%clk 0:03:42.3]} 21... gxf4 {[%clk 0:02:54.6]} 22.
Qd3 {[%clk 0:03:34.2]} 22... fxe3 {[%clk 0:02:47.6]} 23. fxe3 {[%clk 0:03:33.6]}
23... Ne5 {[%clk 0:02:31.3]} 24. Nxe5 {[%clk 0:03:21.8]} 24... Qxe5 {[%clk
0:02:29.1]} 25. Kd2 {[%clk 0:03:08.7]} 25... Re6 {[%clk 0:02:17.9]} 26. Rh5
{[%clk 0:03:05]} 26... Qf6 {[%clk 0:02:14.5]} 27. Rd5 {[%clk 0:02:29.9]} 27...
Bh6 {[%clk 0:01:58.8]} 28. Rg1+ {[%clk 0:01:30.3]} 28... Kh8 {[%clk 0:01:52]}
29. Kc2 {[%clk 0:01:23.7]} 29... Rxe3 {[%clk 0:01:44.7]} 30. Qd1 {[%clk
0:01:22.4]} 30... Bg7 {[%clk 0:01:34.7]} 31. Rxg7 {[%clk 0:01:11.8]} 31... Qxg7
{[%clk 0:01:32]} 32. Qd2 {[%clk 0:00:50.6]} 32... Qg6+ {[%clk 0:01:21]} 33. Bd3
{[%clk 0:00:49.5]} 33... Qg3 {[%clk 0:01:18.7]} 34. Qc3+ {[%clk 0:00:31.6]}
34... Kg8 {[%clk 0:01:12.1]} 35. Rh5 {[%clk 0:00:20.1]} 35... Qg7 {[%clk
0:00:55.1]} 36. Qd2 {[%clk 0:00:17.9]} 36... Rxd3 {[%clk 0:00:33.8]} 37. Qxd3
{[%clk 0:00:17.2]} 37... Rf2+ {[%clk 0:00:29.2]} 38. Kb3 {[%clk 0:00:15]} 38...
Rxb2+ {[%clk 0:00:26.7]} 39. Ka4 {[%clk 0:00:14.3]} 39... a6 {[%clk 0:00:24]}
40. Qd5+ {[%clk 0:00:12]} 40... Qf7 {[%clk 0:00:20.4]} 41. Rg5+ {[%clk
0:00:11.3]} 41... Kf8 {[%clk 0:00:19.6]} 42. Rf5 {[%clk 0:00:10.9]} 42... Rf2
{[%clk 0:00:14.6]} 43. Rxf7+ {[%clk 0:00:10.3]} 43... Rxf7 {[%clk 0:00:13.2]}
44. Qxd6+ {[%clk 0:00:10.1]} 44... Ke8 {[%clk 0:00:12.2]} 45. Qxc5 {[%clk
0:00:10]} 45... Rd7 {[%clk 0:00:10.8]} 46. Qe5+ {[%clk 0:00:09]} 46... Kd8
{[%clk 0:00:10]} 47. Qb8+ {[%clk 0:00:08.5]} 47... Ke7 {[%clk 0:00:09.1]} 48.
Ka5 {[%clk 0:00:08.2]} 48... Ke6 {[%clk 0:00:03.1]} 49. Kb6 {[%clk 0:00:07.7]}
49... Rd6+ {[%clk 0:00:02]} 50. Kxb7 {[%clk 0:00:07]} 50... Rd4 {[%clk
0:00:01.4]} 51. Qc8+ {[%clk 0:00:06.2]} 1-0

[Event "Live Chess"]
[Site "Chess.com"]
[Date "2024.06.01"]
[Round "-"]
[White "Silverback7829"]
[Black "booktrunk"]
[Result "0-1"]
[WhiteElo "960"]
[BlackElo "1397"]
[TimeControl "300"]
[EndTime "13:53:49 PDT"]
[Termination "booktrunk won by checkmate"]

1. d4 {[%clk 0:04:57.7]} 1... b6 {[%clk 0:04:54.7]} 2. Nf3 {[%clk 0:04:56]} 2...
Bb7 {[%clk 0:04:53.3]} 3. Nc3 {[%clk 0:04:51.7]} 3... e6 {[%clk 0:04:44.3]} 4.
e3 {[%clk 0:04:49.9]} 4... h6 {[%clk 0:04:39.3]} 5. Bc4 {[%clk 0:04:47.6]} 5...
Nf6 {[%clk 0:04:37.6]} 6. e4 {[%clk 0:04:44.8]} 6... Nxe4 {[%clk 0:04:30.4]} 7.
Nxe4 {[%clk 0:04:42.7]} 7... Bxe4 {[%clk 0:04:29.1]} 8. Qe2 {[%clk 0:04:34.3]}
8... Bb7 {[%clk 0:04:06.5]} 9. O-O {[%clk 0:04:29]} 9... Be7 {[%clk 0:03:55.5]}
10. Be3 {[%clk 0:04:23.7]} 10... O-O {[%clk 0:03:37.4]} 11. b3 {[%clk
0:04:22.4]} 11... Nc6 {[%clk 0:03:34.2]} 12. Rad1 {[%clk 0:04:17.6]} 12... Qc8
{[%clk 0:03:29.9]} 13. d5 {[%clk 0:04:14]} 13... exd5 {[%clk 0:03:27.5]} 14.
Bxd5 {[%clk 0:04:11.6]} 14... Bd6 {[%clk 0:03:20.8]} 15. Bxc6 {[%clk 0:04:05.9]}
15... Bxc6 {[%clk 0:03:18.8]} 16. c4 {[%clk 0:03:59.1]} 16... Be5 {[%clk
0:03:10.5]} 17. Nxe5 {[%clk 0:03:53.9]} 17... Bb7 {[%clk 0:03:09.7]} 18. Qd3
{[%clk 0:03:45]} 18... d6 {[%clk 0:03:05.2]} 19. Ng4 {[%clk 0:03:38.5]} 19...
Qxg4 {[%clk 0:02:59.7]} 20. g3 {[%clk 0:03:26.1]} 20... Qh3 {[%clk 0:02:55.3]}
21. Rfe1 {[%clk 0:03:12.5]} 21... Qg2# {[%clk 0:02:52.3]} 0-1

[Event "Live Chess"]
[Site "Chess.com"]
[Date "2024.06.01"]
[Round "-"]
[White "Mangoalo"]
[Black "MaksymYurii"]
[Result "1-0"]
[WhiteElo "1048"]
[BlackElo "941"]
[TimeControl "300"]
[EndTime "13:53:54 PDT"]
[Termination "Mangoalo won on time"]

1. e4 {[%clk 0:04:59.6]} 1... e5 {[%clk 0:04:58.6]} 2. f4 {[%clk 0:04:59.5]}
2... exf4 {[%clk 0:04:56.4]} 3. Nf3 {[%clk 0:04:59.2]} 3... Qe7 {[%clk
0:04:53.5]} 4. Bc4 {[%clk 0:04:57.7]} 4... Qxe4+ {[%clk 0:04:50.5]} 5. Be2
{[%clk 0:04:53.4]} 5... Bc5 {[%clk 0:04:40.9]} 6. Nc3 {[%clk 0:04:52.8]} 6...
Qg6 {[%clk 0:04:27.1]} 7. d4 {[%clk 0:04:47.9]} 7... Qxg2 {[%clk 0:04:20]} 8.
Rf1 {[%clk 0:04:42.6]} 8... Be7 {[%clk 0:04:13.5]} 9. Bxf4 {[%clk 0:04:40.3]}
9... Nf6 {[%clk 0:03:56.6]} 10. Bg3 {[%clk 0:04:09.6]} 10... O-O {[%clk
0:03:31.8]} 11. Qd2 {[%clk 0:02:30.9]} 11... d6 {[%clk 0:03:20.6]} 12. O-O-O
{[%clk 0:02:27.6]} 12... Bg4 {[%clk 0:02:45]} 13. Rde1 {[%clk 0:02:17]} 13...
Bxf3 {[%clk 0:02:33.8]} 14. Bxf3 {[%clk 0:02:16.9]} 14... Qxd2+ {[%clk
0:02:14.6]} 15. Kxd2 {[%clk 0:02:12.3]} 15... c6 {[%clk 0:02:11.9]} 16. Rxe7
{[%clk 0:02:05.1]} 16... Na6 {[%clk 0:02:07.6]} 17. Bxd6 {[%clk 0:02:02.7]}
17... Rfd8 {[%clk 0:01:53]} 18. Be5 {[%clk 0:01:58.3]} 18... Nd7 {[%clk
0:01:45.4]} 19. Kc1 {[%clk 0:01:45]} 19... Nxe5 {[%clk 0:01:37.6]} 20. dxe5
{[%clk 0:01:44.9]} 20... Re8 {[%clk 0:01:29.3]} 21. Rxe8+ {[%clk 0:01:41.3]}
21... Rxe8 {[%clk 0:01:28.2]} 22. Re1 {[%clk 0:01:39.6]} 22... Nb4 {[%clk
0:01:26.8]} 23. a3 {[%clk 0:01:36.2]} 23... Nd5 {[%clk 0:01:18.6]} 24. Nxd5
{[%clk 0:01:33.3]} 24... cxd5 {[%clk 0:01:17.4]} 25. Bxd5 {[%clk 0:01:31.8]}
25... b6 {[%clk 0:01:15.7]} 26. Rd1 {[%clk 0:01:29.6]} 26... Rxe5 {[%clk
0:01:07.7]} 27. Be4 {[%clk 0:01:28.4]} 27... f5 {[%clk 0:01:02.9]} 28. Rd8+
{[%clk 0:01:25.8]} 28... Kf7 {[%clk 0:01:01.7]} 29. Bd5+ {[%clk 0:01:24.2]}
29... Ke7 {[%clk 0:01:00]} 30. Ra8 {[%clk 0:01:18]} 30... Rxd5 {[%clk 0:00:55]}
31. Rxa7+ {[%clk 0:01:16.6]} 31... Rd7 {[%clk 0:00:53.9]} 32. Ra6 {[%clk
0:01:15.2]} 32... Rb7 {[%clk 0:00:52]} 33. b4 {[%clk 0:01:13.6]} 33... f4 {[%clk
0:00:49.3]} 34. b5 {[%clk 0:01:10.4]} 34... Kf6 {[%clk 0:00:46.8]} 35. Ra4
{[%clk 0:01:09.4]} 35... Kg5 {[%clk 0:00:43.9]} 36. Re4 {[%clk 0:01:07.8]} 36...
Rf7 {[%clk 0:00:41.4]} 37. Kd2 {[%clk 0:01:05.7]} 37... f3 {[%clk 0:00:39.5]}
38. Ke1 {[%clk 0:01:05.6]} 38... Kf5 {[%clk 0:00:34.2]} 39. Re8 {[%clk
0:01:03.2]} 39... Kg4 {[%clk 0:00:29.6]} 40. Kf2 {[%clk 0:01:01.7]} 40... Kh3
{[%clk 0:00:27.3]} 41. Re3 {[%clk 0:00:58.6]} 41... Kxh2 {[%clk 0:00:24.7]} 42.
Rxf3 {[%clk 0:00:57.5]} 42... Rxf3+ {[%clk 0:00:23.4]} 43. Kxf3 {[%clk
0:00:57.4]} 43... h5 {[%clk 0:00:21.7]} 44. c4 {[%clk 0:00:57.3]} 44... h4
{[%clk 0:00:19.6]} 45. c5 {[%clk 0:00:57.2]} 45... h3 {[%clk 0:00:18.1]} 46.
cxb6 {[%clk 0:00:55.2]} 46... Kg1 {[%clk 0:00:17.1]} 47. b7 {[%clk 0:00:55.1]}
47... h2 {[%clk 0:00:16.4]} 48. b8=Q {[%clk 0:00:54.2]} 48... h1=Q+ {[%clk
0:00:15.2]} 49. Ke2 {[%clk 0:00:50.8]} 49... Qg2+ {[%clk 0:00:14.1]} 50. Kd1
{[%clk 0:00:49.6]} 50... Qf1+ {[%clk 0:00:12.4]} 51. Kc2 {[%clk 0:00:48.5]}
51... Qf2+ {[%clk 0:00:11.8]} 52. Kb3 {[%clk 0:00:46.4]} 52... Qf3+ {[%clk
0:00:10.7]} 53. Kb4 {[%clk 0:00:45.1]} 53... Qe4+ {[%clk 0:00:09.8]} 54. Ka5
{[%clk 0:00:43.8]} 54... Qe1+ {[%clk 0:00:08.7]} 55. Ka6 {[%clk 0:00:42.5]}
55... Qe6+ {[%clk 0:00:07.7]} 56. b6 {[%clk 0:00:40.9]} 56... Qe2+ {[%clk
0:00:06.3]} 57. Ka7 {[%clk 0:00:39.2]} 57... Qe7+ {[%clk 0:00:05.1]} 58. b7
{[%clk 0:00:36.4]} 58... Qxa3+ {[%clk 0:00:04.3]} 59. Kb6 {[%clk 0:00:35]} 59...
Qe3+ {[%clk 0:00:01.6]} 60. Kc7 {[%clk 0:00:34.9]} 60... Qg3+ {[%clk 0:00:00.4]}
61. Kd7 {[%clk 0:00:34.8]} 1-0

[Event "Live Chess"]
[Site "Chess.com"]
[Date "2024.06.01"]
[Round "-"]
[White "Queensandpawns"]
[Black "ShanthamGrarks"]
[Result "1-0"]
[WhiteElo "2382"]
[BlackElo "1847"]
[TimeControl "300"]
[EndTime "13:54:03 PDT"]
[Termination "Queensandpawns won by resignation"]

1. e4 {[%clk 0:04:59.4]} 1... e5 {[%clk 0:04:52.3]} 2. d4 {[%clk 0:04:58.4]}
2... exd4 {[%clk 0:04:50]} 3. c3 {[%clk 0:04:58.3]} 3... dxc3 {[%clk 0:04:49]}
4. Bc4 {[%clk 0:04:57.9]} 4... c2 {[%clk 0:04:44.8]} 5. Qxc2 {[%clk 0:04:56.7]}
5... Qe7 {[%clk 0:04:43.6]} 6. Nc3 {[%clk 0:04:55.3]} 6... Nf6 {[%clk
0:04:42.6]} 7. Nf3 {[%clk 0:04:54.2]} 7... Nc6 {[%clk 0:04:41.3]} 8. O-O {[%clk
0:04:53.7]} 8... d6 {[%clk 0:04:39.3]} 9. Bg5 {[%clk 0:04:52]} 9... Be6 {[%clk
0:04:37.2]} 10. Nd5 {[%clk 0:04:51.1]} 10... Bxd5 {[%clk 0:04:35.5]} 11. exd5
{[%clk 0:04:51]} 11... Ne5 {[%clk 0:04:34]} 12. Nxe5 {[%clk 0:04:49.9]} 12...
dxe5 {[%clk 0:04:32.4]} 13. Bb5+ {[%clk 0:04:49.6]} 13... Kd8 {[%clk 0:04:28.5]}
14. Rfd1 {[%clk 0:04:47.1]} 14... Qd6 {[%clk 0:04:25.7]} 15. Rac1 {[%clk
0:04:44.6]} 15... Be7 {[%clk 0:04:23.7]} 16. Be3 {[%clk 0:04:43.1]} 16... a6
{[%clk 0:04:16.3]} 17. Ba4 {[%clk 0:04:42]} 17... Ng4 {[%clk 0:04:09.1]} 18. Bc5
{[%clk 0:04:36.9]} 18... Qxc5 {[%clk 0:04:07.8]} 19. Qf5 {[%clk 0:04:23.2]}
19... Qxf2+ {[%clk 0:04:04.3]} 20. Qxf2 {[%clk 0:04:21.4]} 20... Nxf2 {[%clk
0:04:03.3]} 21. Kxf2 {[%clk 0:04:21.3]} 21... Bd6 {[%clk 0:04:01]} 22. Ke3
{[%clk 0:04:19.8]} 22... f5 {[%clk 0:03:58.2]} 23. Rf1 {[%clk 0:04:18.2]} 23...
g6 {[%clk 0:03:55.6]} 24. g4 {[%clk 0:04:17.2]} 24... Rf8 {[%clk 0:03:54.4]} 25.
gxf5 {[%clk 0:04:16.1]} 25... gxf5 {[%clk 0:03:49.4]} 26. Bc2 {[%clk 0:04:16]}
26... f4+ {[%clk 0:03:47]} 27. Ke4 {[%clk 0:04:15.6]} 27... Ke7 {[%clk
0:03:38.6]} 28. Rg1 {[%clk 0:04:12.9]} 28... Rg8 {[%clk 0:03:38.1]} 29. Bd3
{[%clk 0:04:10.3]} 29... Raf8 {[%clk 0:03:33.3]} 30. Kf3 {[%clk 0:04:06.7]}
30... h6 {[%clk 0:03:29.6]} 31. h4 {[%clk 0:04:04.2]} 31... Kf6 {[%clk
0:03:23.9]} 32. h5 {[%clk 0:04:02.7]} 32... Rg5 {[%clk 0:03:18.7]} 33. Rxg5
{[%clk 0:03:59.8]} 33... hxg5 {[%clk 0:03:17.7]} 34. Kg4 {[%clk 0:03:56.4]}
34... Rh8 {[%clk 0:03:03.3]} 35. Be4 {[%clk 0:03:47.2]} 35... Rh6 {[%clk
0:02:51.4]} 36. b4 {[%clk 0:03:46.3]} 36... Rh8 {[%clk 0:02:47.7]} 37. a4 {[%clk
0:03:44.9]} 37... Rc8 {[%clk 0:02:36.6]} 38. b5 {[%clk 0:03:33.2]} 38... axb5
{[%clk 0:02:35.4]} 39. axb5 {[%clk 0:03:33.1]} 39... b6 {[%clk 0:02:34.4]} 40.
Ra1 {[%clk 0:03:25.5]} 40... Bb4 {[%clk 0:02:28.5]} 41. Ra7 {[%clk 0:03:24.3]}
41... Bd6 {[%clk 0:02:23.9]} 42. Rb7 {[%clk 0:03:23]} 42... Ra8 {[%clk
0:02:21.5]} 43. h6 {[%clk 0:03:18.3]} 43... Ra3 {[%clk 0:02:14.9]} 44. h7 {[%clk
0:03:05]} 44... Rg3+ {[%clk 0:02:09.7]} 45. Kh5 {[%clk 0:03:04.1]} 45... Rh3+
{[%clk 0:02:08.9]} 46. Kg4 {[%clk 0:03:03.7]} 46... Rg3+ {[%clk 0:01:57.9]} 47.
Kh5 {[%clk 0:03:02.3]} 47... Rh3+ {[%clk 0:01:29.4]} 48. Kg4 {[%clk 0:03:00.6]}
48... Rxh7 {[%clk 0:01:29]} 49. Bxh7 {[%clk 0:02:58.9]} 49... e4 {[%clk
0:01:26.4]} 50. Bxe4 {[%clk 0:02:57.3]} 50... Ke5 {[%clk 0:01:25.8]} 51. Bf3
{[%clk 0:02:56.2]} 51... Kf6 {[%clk 0:01:22.7]} 52. Ra7 {[%clk 0:02:55.3]} 52...
Be5 {[%clk 0:01:17.9]} 53. Ra2 {[%clk 0:02:55.2]} 53... Bd6 {[%clk 0:01:16.7]}
54. Re2 {[%clk 0:02:55.1]} 54... Be5 {[%clk 0:01:15.8]} 55. Re4 {[%clk
0:02:54.3]} 55... Bd6 {[%clk 0:01:14.7]} 56. Re6+ {[%clk 0:02:54.2]} 56... Kf7
{[%clk 0:01:11.8]} 57. Kxg5 {[%clk 0:02:54.1]} 1-0

[Event "Live Chess"]
[Site "Chess.com"]
[Date "2024.06.01"]
[Round "-"]
[White "AndrewBak1"]
[Black "WelshTiger"]
[Result "0-1"]
[WhiteElo "1847"]
[BlackElo "2520"]
[TimeControl "300"]
[EndTime "13:54:16 PDT"]
[Termination "WelshTiger won by resignation"]

1. e4 {[%clk 0:04:44.7]} 1... c5 {[%clk 0:04:58.7]} 2. Nf3 {[%clk 0:04:40.1]}
2... Nc6 {[%clk 0:04:56.5]} 3. d4 {[%clk 0:04:39.7]} 3... cxd4 {[%clk
0:04:55.8]} 4. Nxd4 {[%clk 0:04:39.6]} 4... Nf6 {[%clk 0:04:55.1]} 5. Nc3 {[%clk
0:04:38.3]} 5... d6 {[%clk 0:04:54.6]} 6. Bg5 {[%clk 0:04:36.7]} 6... Bd7 {[%clk
0:04:53.7]} 7. Qd2 {[%clk 0:04:34.8]} 7... Rc8 {[%clk 0:04:51]} 8. O-O-O {[%clk
0:04:31]} 8... Nxd4 {[%clk 0:04:49.7]} 9. Qxd4 {[%clk 0:04:30.4]} 9... Qa5
{[%clk 0:04:49.3]} 10. Kb1 {[%clk 0:04:25.7]} 10... Qxg5 {[%clk 0:04:46.2]} 11.
Qxd6 {[%clk 0:04:19.4]} 0-1